Cogmind - Beta 9.4 @@@ ROGUE MODE // 2020.02.08 @ 20:35:22 Player: YppY Result: Destroyed by KZ-WVP(z) with Makeshift Spear Performance ------------- Evolutions (3) 1500 Regions Visited (10) 2000 Robots Destroyed (65) 325 Value Destroyed (1759) 1759 Prototype IDs (29) 580 Alien Tech Used (0) 0 Bonus (552) 552 TOTAL SCORE: 6716 Bonus ------- Aligned with FarCom 300 Met Imprinter 300 Friendly Fire -48 Cogmind --------- Core Integrity 0/700 Matter 74/300 Energy 100/100 System Corruption 3% Temperature Cool (0) Movement Core (50) Location -7/Zion Parts ------- > --- POWER (2) -------- (None) > --- PROPULSION (4) --- (None) > --- UTILITY (4) ------ Coolant Injector > --- WEAPON (3) ------- (None) > --- INVENTORY (4) ---- 0b10 Decoder Chip [Generic] Advanced Targeting Computer Kinecellerator Peak State ------------ > --- POWER ------------ Makeshift Power Source Light Fission Core > --- PROPULSION ------- Flying Fortress v7 > --- UTILITY ---------- Improved Cooling System Advanced Targeting Computer Hardened Heavy Armor Plating > --- WEAPON ----------- Makeshift Laser Advanced Assault Cannon Advanced Assault Cannon > --- INVENTORY -------- Coolant Injector Advanced Targeting Computer Kinecellerator [Rating: 69] Favorites ----------- Power Cooled Ion Engine Engine Cooled Ion Engine Power Core Nuclear Core Propulsion Aluminum Leg Leg Aluminum Leg Flight Unit Flying Fortress v7 Utility Medium Storage Unit Device Improved Cooling System Storage Medium Storage Unit Processor Advanced Targeting Computer Protection Hardened Heavy Armor Plating Weapon Assault Cannon Energy Gun Medium Laser Ballistic Gun Assault Rifle Ballistic Cannon Assault Cannon Impact Weapon Makeshift Hammer Piercing Weapon Makeshift Spear Build | -11 -10 -9 -9 -9 -8 -8 -7 -7 -7 -7 ------- Run | Scr Mat Mat Min Exi Min Mat Fac Low Low Zio Slots Evolved 6 | . . 2 . . . 2 2 . . . Power 1 | . . . . . . . 1 . . . Propulsion 2 | . . 1 . . . 1 . . . . Utility 2 | . . 1 . . . . 1 . . . Weapon 1 | . . . . . . 1 . . . . Parts Attached 55 | 6 2 12 6 . . 6 7 1 . 15 Power 12 | 1 . 3 . . . 1 1 . . 6 Engine 8 | 1 . 3 . . . 1 . . . 3 Core 4 | . . . . . . . 1 . . 3 Reactor . | . . . . . . . . . . . Propulsion 8 | 2 . 3 2 . . 1 . . . . Treads . | . . . . . . . . . . . Leg 7 | 2 . 3 2 . . . . . . . Wheel . | . . . . . . . . . . . Hover . | . . . . . . . . . . . Flight 1 | . . . . . . 1 . . . . Utility 21 | 1 1 2 4 . . 2 4 1 . 6 Device 4 | . . . . . . 1 2 . . 1 Storage 2 | 1 1 . . . . . . . . . Processor 7 | . . 1 . . . 1 . 1 . 4 Hackware . | . . . . . . . . . . . Protection 8 | . . 1 4 . . . 2 . . 1 Artifact . | . . . . . . . . . . . Weapon 14 | 2 1 4 . . . 2 2 . . 3 Energy Gun 4 | 1 . 2 . . . . . . . 1 Energy Cannon . | . . . . . . . . . . . Ballistic Gun 2 | 1 1 . . . . . . . . . Ballistic Cannon 6 | . . 2 . . . 2 2 . . . Launcher . | . . . . . . . . . . . Special Weapon . | . . . . . . . . . . . Impact Weapon 1 | . . . . . . . . . . 1 Slashing Weapon . | . . . . . . . . . . . Piercing Weapon 1 | . . . . . . . . . . 1 Special Melee Weapon . | . . . . . . . . . . . Unidentified Prototypes 7 | . . 2 . . . . . . . 5 Parts Lost 19 | . . 1 2 . . 1 . 1 . 14 Power 4 | . . . . . . . . . . 4 Propulsion 2 | . . . 1 . . . . . . 1 Utility 6 | . . . 1 . . . . 1 . 4 Weapon 7 | . . 1 . . . 1 . . . 5 Highest Loss Streak 13 | . . 1 2 . . 1 . 1 . 13 Average Slot Usage (%) 78 | . 85 76 94 88 88 70 67 68 69 57 Engine 9 | . 14 11 11 11 11 9 7 7 7 5 Core 2 | . . . . . . . 5 7 7 5 Leg 15 | . 28 30 30 22 22 . . . . . Flight 3 | . . . . . . 9 7 7 7 6 Device 3 | . . . . . . 1 12 7 7 8 Storage 7 | . 14 11 11 11 11 9 2 . . . Processor 2 | . . . . . . 7 . 6 7 7 Protection 11 | . . 2 18 22 22 9 7 7 7 5 Ballistic Gun 2 | . 22 11 . . . . . . . . Ballistic Cannon 18 | . . 5 22 22 22 25 23 23 23 13 Naked Turns . | . . . . . . . . . . . Heaviest Build 62 | 11 15 29 38 38 38 43 62 57 56 56 Greatest Support 72 | 20 20 30 30 20 20 72 72 72 72 72 Greatest Overweight (x) 4 | . . . 1 1 1 . . . . 4 Average Overweight (x) . | . . . . 1 1 . . . . . Largest Inventory Capacity 8 | 6 8 8 8 8 8 8 8 4 4 4 Average Capacity 6 | 5 7 8 8 8 8 8 5 4 4 4 Most Carried 8 | 4 4 6 8 8 8 8 8 4 3 4 Average Carried 5 | 1 2 3 6 7 8 6 5 3 3 3 Final Capacity 8 | 6 8 8 8 8 8 8 4 4 4 4 Final Carried 8 | 2 3 5 6 8 8 7 4 3 3 3 Class Distribution -------------------- 67% | Mutant 12% | Gunner 9% | Tank 9% | Skirmisher Dominant Class ---------------- Mutant | -10/Materials Mutant | -9/Materials Mutant | -9/Mines Mutant | -9/Exiles Mutant | -8/Mines Skirmisher | -8/Materials Tank | -7/Factory Gunner | -7/Lower Caves Gunner | -7/Lower Caves Mutant | -7/Zion Resources | -11 -10 -9 -9 -9 -8 -8 -7 -7 -7 -7 ----------- Run | Scr Mat Mat Min Exi Min Mat Fac Low Low Zio Matter Collected 2217 | 260 69 248 422 . . 377 316 383 106 36 Remotely . | . . . . . . . . . . . Salvage Created 1966 | . 124 676 147 . . 412 302 171 . 134 Parts 125 | . 13 39 21 . . 25 17 4 . 6 Haulers Intercepted 5 | . . 2 . . . 1 2 . . . Recyclers Shooed 2 | . . . . . . 1 1 . . . Parts Field Recycled . | . . . . . . . . . . . Retrieved Matter . | . . . . . . . . . . . Parts Self-Destructed 5 | . . . . . . . . 4 . 1 Prevented . | . . . . . . . . . . . Kills | -11 -10 -9 -9 -9 -8 -8 -7 -7 -7 -7 ------- Run | Scr Mat Mat Min Exi Min Mat Fac Low Low Zio Combat Hostiles Destroyed 46 | . 6 11 11 . . 8 2 5 . 3 Guns 15 | . 6 9 . . . . . . . . Cannons 31 | . . 2 11 . . 8 2 5 . 3 Classes Destroyed 12 | . 2 4 1 . . 1 2 . . 2 Worker 1 | . . . . . . . 1 . . . Builder 1 | . . . . . . . 1 . . . Hauler 5 | . . 2 . . . 1 2 . . . Recycler 7 | . . 3 . . . 1 3 . . . Watcher 4 | . . 2 . . . 1 1 . . . Swarmer 16 | . 4 4 6 . . . . 2 . . Grunt 17 | . 2 4 3 . . 5 1 2 . . Sentry 7 | . . 3 . . . 2 1 1 . . Demolisher 2 | . . . 2 . . . . . . . Hunter 1 | . . . . . . 1 . . . . Zionite 1 | . . . . . . . . . . 1 Thug 1 | . . . . . . . . . . 1 Fireman 2 | . . . . . . . . . . 2 Best Kill Streak 5 | . 4 5 3 . . 3 3 3 . 3 Combat Bots Only 4 | . 4 4 3 . . 3 1 3 . 3 Max Kills in Single Turn 2 | . 2 2 1 . . 1 1 1 . 1 Gunslinging 1 | . 1 1 . . . . . . . . Exploded . | . . . . . . . . . . . Melee . | . . . . . . . . . . . Uniques/NPCs Destroyed . | . . . . . . . . . . . Combat | -11 -10 -9 -9 -9 -8 -8 -7 -7 -7 -7 -------- Run | Scr Mat Mat Min Exi Min Mat Fac Low Low Zio Damage Taken 4735 | . 161 203 847 . . 465 166 853 . 2040 Core 931 | . 25 38 93 . . 63 11 34 . 667 Absorbed by Shields . | . . . . . . . . . . . Core Remaining (%) 86 | 100 90 . . . 67 88 . . . . Volleys Fired 155 | . 13 33 25 . . 29 27 15 . 13 Largest 3 | . 2 2 2 . . 3 3 3 . 3 Hottest 146 | . 70 88 88 . . 132 140 140 . 146 Shots Fired 375 | . 26 66 50 . . 82 79 39 . 33 Gun 86 | . 26 52 . . . . . . . 8 Cannon 289 | . . 14 50 . . 82 79 39 . 25 Launcher . | . . . . . . . . . . . Special . | . . . . . . . . . . . Kinetic 345 | . 23 47 50 . . 82 79 39 . 25 Thermal 30 | . 3 19 . . . . . . . 8 Explosive . | . . . . . . . . . . . Electromagnetic . | . . . . . . . . . . . Robot Hit Streak 10 | . 9 10 7 . . 7 4 10 . 10 Robot Miss Streak 12 | . 2 3 5 . . 12 3 4 . 2 Penetration Max . | . . . . . . . . . . . Secondary Targets 4 | . 2 2 . . . . . . . . Max Gunslinging Chain 1 | . 1 1 . . . . . . . . Shots Hit Robots 185 | . 16 42 22 . . 29 28 20 . 28 Core Hits 93 | . 7 23 12 . . 19 12 8 . 12 Critical Hits 2 | . . 1 . . . . 1 . . . Critical Kills 1 | . . 1 . . . . . . . . Critical Parts Destroyed 1 | . . . . . . . 1 . . . Melee Attacks 6 | . . . . . . . . . . 6 Impact 5 | . . . . . . . . . . 5 Slashing . | . . . . . . . . . . . Piercing 1 | . . . . . . . . . . 1 Sneak Attacks . | . . . . . . . . . . . Combat Hostiles . | . . . . . . . . . . . Follow-up Attacks . | . . . . . . . . . . . Damage Inflicted 4040 | . 157 662 549 . . 816 695 470 . 691 Guns 695 | . 157 446 . . . . . . . 92 Cannons 3259 | . . 216 549 . . 816 695 470 . 513 Explosions . | . . . . . . . . . . . Melee 86 | . . . . . . . . . . 86 Ramming . | . . . . . . . . . . . Kinetic 3648 | . 133 472 549 . . 816 695 470 . 513 Thermal 306 | . 24 190 . . . . . . . 92 Explosive . | . . . . . . . . . . . Electromagnetic . | . . . . . . . . . . . Impact 53 | . . . . . . . . . . 53 Slashing . | . . . . . . . . . . . Piercing 33 | . . . . . . . . . . 33 Highest Corruption 3 | . . . . . . . . . . 3 Average Corruption 2 | . . . . . . . . . . 2 Corruption Purged . | . . . . . . . . . . . Effects 1 | . . . . . . . . . . 1 Targeting Errors 1 | . . . . . . . . . . 1 Overload Shots . | . . . . . . . . . . . Overflow Damage 79 | . . . 10 . . . 31 38 . . Projectiles 79 | . . . 10 . . . 31 38 . . Explosions . | . . . . . . . . . . . Melee . | . . . . . . . . . . . Knockbacks 30 | . . 1 8 . . 4 8 5 . 4 Impact . | . . . . . . . . . . . Kinetic 27 | . . 1 7 . . 3 8 4 . 4 Secondary 3 | . . . 1 . . 1 . 1 . . Self-Inflicted Damage . | . . . . . . . . . . . Shots . | . . . . . . . . . . . Rammed . | . . . . . . . . . . . Targets Rammed . | . . . . . . . . . . . Kicked . | . . . . . . . . . . . Crushed . | . . . . . . . . . . . Highest Temperature 425 | . 27 54 216 . . 425 355 298 . 259 Average Temperature 126 | . 11 18 87 . . 216 102 140 . 134 Received Heat Transfer 1000 | . 54 90 66 . . 171 84 66 . 469 Effects 9 | . . . . . . 6 . . . 3 Shutdowns 1 | . . . . . . 1 . . . . Energy Bleed 1 | . . . . . . 1 . . . . Interference 5 | . . . . . . 2 . . . 3 Matter Decay 1 | . . . . . . 1 . . . . Short Circuit 1 | . . . . . . 1 . . . . Siege Activations . | . . . . . . . . . . . Robots Corrupted . | . . . . . . . . . . . Combat Hostiles . | . . . . . . . . . . . Parts Fried . | . . . . . . . . . . . Impact Corruptions . | . . . . . . . . . . . Robots Melted . | . . . . . . . . . . . Combat Hostiles . | . . . . . . . . . . . Parts Melted . | . . . . . . . . . . . Heat Transferred 851 | . 74 481 . . . . . . . 296 Parts Sabotaged . | . . . . . . . . . . . Parts Stolen . | . . . . . . . . . . . Parts Stripped . | . . . . . . . . . . . Power Chain Reactions . | . . . . . . . . . . . Missiles Intercepted . | . . . . . . . . . . . Alert | -11 -10 -9 -9 -9 -8 -8 -7 -7 -7 -7 ------- Run | Scr Mat Mat Min Exi Min Mat Fac Low Low Zio Peak Influence 399 | . 180 399 310 . . 335 374 . . . Average Influence 147 | . 60 220 118 . . 143 222 . . . Maximum Alert Level 1 | . . 1 1 . . 1 1 . . . Low Security (%) 70 | 100 100 48 86 . 100 71 36 . . . Level 1 29 | . . 51 13 . . 28 63 . . . Level 2 . | . . . . . . . . . . . Level 3 . | . . . . . . . . . . . Level 4 . | . . . . . . . . . . . Level 5 . | . . . . . . . . . . . High Security . | . . . . . . . . . . . Max Security . | . . . . . . . . . . . Squads Dispatched 6 | . 1 1 . . . . 4 . . . Investigation 2 | . 1 1 . . . . . . . . Extermination . | . . . . . . . . . . . Reinforcement 1 | . . . . . . . 1 . . . Assault . | . . . . . . . . . . . Garrison 3 | . . . . . . . 3 . . . Intercept . | . . . . . . . . . . . Construction Impeded . | . . . . . . . . . . . Haulers Reinforced . | . . . . . . . . . . . Stealth | -11 -10 -9 -9 -9 -8 -8 -7 -7 -7 -7 --------- Run | Scr Mat Mat Min Exi Min Mat Fac Low Low Zio Distress Signals 7 | . 1 3 . . . 2 1 . . . Communications Jammed . | . . . . . . . . . . . Distress Signals . | . . . . . . . . . . . Times Spotted 104 | . 9 16 12 . . 14 10 15 . 28 Peak Tracking Total 19 | . 4 6 3 . . 5 3 6 . 19 Tactical Retreats 9 | . 1 . . . . . 1 4 . 3 Traps | -11 -10 -9 -9 -9 -8 -8 -7 -7 -7 -7 ------- Run | Scr Mat Mat Min Exi Min Mat Fac Low Low Zio Traps Triggered 2 | . 1 1 . . . . . . . . Indirectly . | . . . . . . . . . . . Trap Hack Attempts . | . . . . . . . . . . . Triggered . | . . . . . . . . . . . Disarmed . | . . . . . . . . . . . Reprogrammed . | . . . . . . . . . . . Reused . | . . . . . . . . . . . Traps Extracted . | . . . . . . . . . . . Installed . | . . . . . . . . . . . Triggered 1 | . . . . . . . . . 1 . Machines | -11 -10 -9 -9 -9 -8 -8 -7 -7 -7 -7 ---------- Run | Scr Mat Mat Min Exi Min Mat Fac Low Low Zio Machines Disabled 9 | . . . 1 . . 2 3 . . 3 Max in Single Turn 1 | . . . 1 . . 1 1 . . 1 Garrison Access 1 | . . . . . . . 1 . . . Machines Sabotaged . | . . . . . . . . . . . Garrisons Compromised . | . . . . . . . . . . . Overloaded Fab Kills . | . . . . . . . . . . . Fab Network Shutdowns . | . . . . . . . . . . . Hacking | -11 -10 -9 -9 -9 -8 -8 -7 -7 -7 -7 --------- Run | Scr Mat Mat Min Exi Min Mat Fac Low Low Zio Machines Accessed 9 | . 1 2 . 1 . 1 4 . . . Terminals 7 | . 1 2 . . . 1 3 . . . Fabricators . | . . . . . . . . . . . Repair Stations . | . . . . . . . . . . . Recycling Units . | . . . . . . . . . . . Scanalyzers . | . . . . . . . . . . . Garrison Access 1 | . . . . . . . 1 . . . Total Hacks 19 | . 1 8 . 1 . 2 7 . . . Successful 14 | . 1 6 . 1 . 1 5 . . . Failed 5 | . . 2 . . . 1 2 . . . Catastrophic . | . . . . . . . . . . . Database Lockouts . | . . . . . . . . . . . Manual 14 | . 1 7 . 1 . 2 3 . . . Terminals 17 | . 1 8 . . . 2 6 . . . Fabricators . | . . . . . . . . . . . Repair Stations . | . . . . . . . . . . . Recycling Units . | . . . . . . . . . . . Scanalyzers . | . . . . . . . . . . . Garrison Access 1 | . . . . . . . 1 . . . Terminal Hacks 4 | . . 1 . 1 . . 2 . . . Branch Access Points 1 | . . . . . . . 1 . . . Alert Level 1 | . . 1 . . . . . . . . Zone Layout 1 | . . . . . . . 1 . . . EX-Prototype ID Bank 1 | . . . . 1 . . . . . . Fabricator Hacks . | . . . . . . . . . . . Repair Station Hacks . | . . . . . . . . . . . Recycling Unit Hacks . | . . . . . . . . . . . Scanalyzer . | . . . . . . . . . . . Garrison Access Hacks 1 | . . . . . . . 1 . . . Seal Access 1 | . . . . . . . 1 . . . Unauthorized Hacks 22 | . 2 12 . . . 3 5 . . . Terminals 9 | . 1 5 . . . 1 2 . . . Track 3 | . 1 2 . . . . . . . . Assimilate 1 | . . . . . . . 1 . . . Botnet 4 | . . 2 . . . 1 1 . . . Operators 1 | . . 1 . . . . . . . . Fabricators . | . . . . . . . . . . . Repair Stations . | . . . . . . . . . . . Recycling Units . | . . . . . . . . . . . Scanalyzers . | . . . . . . . . . . . Garrison Access . | . . . . . . . . . . . Data Cores Recovered . | . . . . . . . . . . . Used . | . . . . . . . . . . . Hacking Detections 6 | . 1 2 . . . . 3 . . . Full Trace Events . | . . . . . . . . . . . Feedback Events . | . . . . . . . . . . . Feedback Blocked . | . . . . . . . . . . . Robot Schematics Acquired . | . . . . . . . . . . . Robots Built . | . . . . . . . . . . . Matter . | . . . . . . . . . . . Time . | . . . . . . . . . . . Total Robot Build Rating . | . . . . . . . . . . . Part Schematics Acquired . | . . . . . . . . . . . Parts Built . | . . . . . . . . . . . Matter . | . . . . . . . . . . . Time . | . . . . . . . . . . . Total Part Build Rating . | . . . . . . . . . . . Parts Repaired . | . . . . . . . . . . . Time . | . . . . . . . . . . . Parts Recycled . | . . . . . . . . . . . Recycled Matter . | . . . . . . . . . . . Retrieved Matter . | . . . . . . . . . . . Retrieved Components . | . . . . . . . . . . . Parts Scanalyzed . | . . . . . . . . . . . Part Schematics Acquired . | . . . . . . . . . . . Parts Damaged . | . . . . . . . . . . . Bothacking | -11 -10 -9 -9 -9 -8 -8 -7 -7 -7 -7 ------------ Run | Scr Mat Mat Min Exi Min Mat Fac Low Low Zio Used RIF Installer . | . . . . . . . . . . . Robots Hacked . | . . . . . . . . . . . Non-combat . | . . . . . . . . . . . Combat . | . . . . . . . . . . . Robot Hacks Applied . | . . . . . . . . . . . Relay Couplers Released . | . . . . . . . . . . . Robots Rewired . | . . . . . . . . . . . Allies Hacked . | . . . . . . . . . . . Hacks Repelled . | . . . . . . . . . . . Allies | -11 -10 -9 -9 -9 -8 -8 -7 -7 -7 -7 -------- Run | Scr Mat Mat Min Exi Min Mat Fac Low Low Zio Total Allies 10 | . . . 3 . . . 1 . . 6 Largest Group 6 | . . . 3 . . . 1 1 . 6 Highest-Rated Group 180 | . . . 40 . . . 10 9 . 180 Highest-Rated Ally 31 | . . . 16 . . . 10 9 . 31 Total Orders . | . . . . . . . . . . . Ally Attacks 3 | . . . 3 . . . . . . . Total Damage 24 | . . . 24 . . . . . . . Kills . | . . . . . . . . . . . Allies Corrupted . | . . . . . . . . . . . Allies Melted . | . . . . . . . . . . . Intel | -11 -10 -9 -9 -9 -8 -8 -7 -7 -7 -7 ------- Run | Scr Mat Mat Min Exi Min Mat Fac Low Low Zio Robot Analysis Total . | . . . . . . . . . . . Derelict Logs Recovered 4 | . . . 2 . . . . 1 . 1 Drone Launches . | . . . . . . . . . . . Drone Recoveries . | . . . . . . . . . . . Exploration | -11 -10 -9 -9 -9 -8 -8 -7 -7 -7 -7 ------------- Run | Scr Mat Mat Min Exi Min Mat Fac Low Low Zio Turns Passed 3893 | 76 139 433 1025 404 116 267 526 314 105 488 Spaces Moved 3702 | 66 77 208 676 268 71 212 720 491 210 703 Core 34 | 24 . . . . . . . . . 10 Treads . | . . . . . . . . . . . Legs 1342 | 42 77 208 676 268 71 . . . . . Wheels . | . . . . . . . . . . . Hover . | . . . . . . . . . . . Flight 2326 | . . . . . . 212 720 491 210 693 Fastest Speed 50 | 50 120 120 120 150 150 50 50 50 50 50 Average Speed 80 | 94 120 120 133 150 150 50 50 50 50 51 Slowest Speed 250 | 120 120 120 150 150 150 50 50 50 50 250 Overloaded Moves . | . . . . . . . . . . . Propulsion Burnouts . | . . . . . . . . . . . Robots Hopped 27 | . . . . . . 4 9 1 . 13 Cave-ins Triggered . | . . . . . . . . . . . Exploration Rate (%) 41 | 4 17 27 99 65 19 25 27 75 41 62 Regions Visited 10 Branch Regions 6 Pre-discovered Areas 2 | . . . 1 . . . . 1 . . Known Exits Taken 2 | . . 1 . . . . 1 . . . Unknown Exits Taken 8 | 1 1 . 1 1 1 1 . 1 1 . Scrap Searched 6 | . . . 1 . . . . 2 3 . Spaces Dug 6 | . . . . . . . 6 . . . Terrain Destroyed 54 | . . 1 14 . . 18 10 11 . . Melee . | . . . . . . . . . . . Projectile 54 | . . 1 14 . . 18 10 11 . . AOE . | . . . . . . . . . . . Actions | -11 -10 -9 -9 -9 -8 -8 -7 -7 -7 -7 --------- Run | Scr Mat Mat Min Exi Min Mat Fac Low Low Zio Total 4262 | 79 99 327 749 272 81 306 824 527 209 789 Wait 242 | . 3 50 32 . 11 50 40 22 . 34 Move 3642 | 65 76 207 675 267 70 204 701 488 209 680 Hop 23 | . . . . . . 3 9 1 . 10 Pick Up 83 | 8 3 15 7 2 . 9 21 . . 18 Fast Attach . | . . . . . . . . . . . Attach 35 | 6 . 4 3 . . 5 4 1 . 12 Detach . | . . . . . . . . . . . Swap 21 | . 2 8 3 . . 1 3 . . 4 Drop 55 | . 2 10 4 3 . 5 19 . . 12 Fire 155 | . 13 33 25 . . 29 27 15 . 13 Melee 6 | . . . . . . . . . . 6 Ram . | . . . . . . . . . . . Kick . | . . . . . . . . . . . Crush . | . . . . . . . . . . . Escape Stasis . | . . . . . . . . . . . Rewire . | . . . . . . . . . . . Trap . | . . . . . . . . . . . Miscellaneous . | . . . . . . . . . . . Route ------- -11/Scrapyard -10/Materials -9/Materials -9/Mines (discovered 3 exits: *Mat x2 / *Exi) -9/Exiles -8/Mines -8/Materials -7/Factory (discovered 4 exits: Sto x2 / *Low x2) -7/Lower Caves -7/Lower Caves -7/Zion History --------- Turn | Location | Event 32 | -11/Scrapyard | Discovered new exit (range 13) 77 | -11/Scrapyard | Entered Materials 171 | -10/Materials | Discovered new exit (range 14) 216 | -10/Materials | Entered another Materials area 216 | -9/Materials | Evolved 2 slots: Propulsion x1, Utility x1 327 | -9/Materials | Build established: Mutant 602 | -9/Materials | Discovered new exit (range 16) 648 | -9/Materials | Identified exit to Mines 649 | -9/Materials | Entered Mines 664 | -9/Mines | Discovered new exit (range 12) 688 | -9/Mines | Discovered new exit (range 6) 768 | -9/Mines | Learned location of Storage (-7) 896 | -9/Mines | Learned Materials garrison access intel 995 | -9/Mines | A weapon hastily lodged in a ceiling crevice suddenly fell to the ground 1155 | -9/Mines | Joined a pair of Derelicts in attacking an 0b10 outpost 1268 | -9/Mines | Assembled infested the area 1309 | -9/Mines | Assisted by bots powering up and referring to "LRC-V3" 1668 | -9/Mines | Deemed a non-threat by the Exiles lab entrance 1668 | -9/Mines | Discovered new exit (range 5) 1674 | -9/Mines | Entered Exiles 1709 | -9/Exiles | Met 8R-AWN 1737 | -9/Exiles | Met EX-HEX 1788 | -9/Exiles | Met EX-BIN 1811 | -9/Exiles | Aligned with FarCom system 1812 | -9/Exiles | Given EX-Vault access code 1848 | -9/Exiles | Opened EX-Vault 1859 | -9/Exiles | Found Flying Fortress v7 1889 | -9/Exiles | Warned to stay clear of 0b10 Research branches 1931 | -9/Exiles | Met EX-DEC 2065 | -9/Exiles | Discovered new exit (range 10) 2078 | -9/Exiles | Left Exiles lab with Flying Fortress v7 2078 | -9/Exiles | Entered Mines 2176 | -8/Mines | Discovered new exit (range 13) 2194 | -8/Mines | Entered Materials 2194 | -8/Materials | Evolved 2 slots: Propulsion x1, Weapon x1 2195 | -8/Materials | Loaded intel: 1 garrison access location 2458 | -8/Materials | Discovered new exit (range 6) 2461 | -8/Materials | Entered Factory 2461 | -7/Factory | Evolved 2 slots: Power x1, Utility x1 2611 | -7/Factory | Garrison activated, responded to threat 2852 | -7/Factory | Identified exit to Storage 2852 | -7/Factory | Identified exit to Lower Caves 2930 | -7/Factory | Build established: Tank 2987 | -7/Factory | Entered Lower Caves 2987 | -7/Lower Caves | Accompanied by 1 ally 3099 | -7/Lower Caves | Attracted the attention of an 0b10 checkpoint 3149 | -7/Lower Caves | Spotted B-75 Beast 3289 | -7/Lower Caves | Discovered new exit (range 15) 3301 | -7/Lower Caves | Entered another Lower Caves area 3383 | -7/Lower Caves | Encountered a Warlord checkpoint 3392 | -7/Lower Caves | Build established: Gunner 3403 | -7/Lower Caves | Discovered new exit (range 7) 3406 | -7/Lower Caves | Entered Zion 3420 | -7/Zion | Found Prototype Processor 3422 | -7/Zion | Identified Exp. Signal Interpreter 3425 | -7/Zion | Found Prototype Processor 3426 | -7/Zion | Identified Exp. Terrain Scan Processor 3428 | -7/Zion | Found Prototype Processor 3429 | -7/Zion | Identified Exp. Melee Analysis Suite 3434 | -7/Zion | Found Prototype Processor 3435 | -7/Zion | Identified Spectral Analyzer 3499 | -7/Zion | Learned Factory non-interactive machine intel 3569 | -7/Zion | Gained Derelict followers 3579 | -7/Zion | Gained Derelict followers 3718 | -7/Zion | Rebuked by Imprinter 3727 | -7/Zion | Attempted to imprint without authorization 3727 | -7/Zion | Attacked by Zionites 3880 | -7/Zion | Core integrity fell below 50% 3893 | -7/Zion | Core integrity fell below 20% 3894 | -7/Zion | Destroyed by KZ-WVP(z) with Makeshift Spear Last Messages --------------- 03867_ Chain reaction triggered in Mak. Power Source. 03867_ KE-LDO(z) destroyed. 03867_ CQ-6RV(z) destroyed. 03867_ KG-KEE(g) destroyed. 03867_ Y-54 Guardian destroyed. 03870_ OI-PW9(g) destroyed. 03872_ ES-HGC(z) pulls a Mak. Laser out of the Twisted Machinery. 03873_ F9-HDR(z) pulls a Mak. Shrapnel Gun out of the Twisted Machinery. 03876_ UB-54X(z) pulls a Mak. Laser out of the Twisted Machinery. 03879_ Knocked back. 03882_ 4R-ADZ(z) pulls a Mak. Laser out of the Twisted Machinery. 03882_ TQ-QAG(z) pulls a Mak. Hammer out of the Twisted Machinery. 03883_ KZ-WVP(z) pulls a Mak. Spear out of the Twisted Machinery. 03884_ Flying Fortress v7 destroyed. 03884_ Imp. Cooling System destroyed. 03884_ N4-6QQ(z) pulls a Mak. Hammer out of the Twisted Machinery. 03886_ 1G-Z18(z) pulls a Mak. Spear out of the Twisted Machinery. 03888_ Adv. Targeting Computer destroyed. 03888_ 7M-7L1(z) pulls a Mak. Sword out of the Twisted Machinery. 03890_ 4R-ADZ(z) destroyed. Map ----- +----------------------------------------------------+ | ??????????????????????????????????????????????#### | | ??????????????????????????????????????????????# | | ?????????????????????????????????????????????## | | ?????????????????????????????????????????????# | | ??????????????????#####???????????????#####??##### | | ????????##????????#"""#??????????????## "#??###"" | | ?????????"######??#"&"#?????????????##" #??#""" | | ?????????#""#""####&& #####?#???????#" ?### "" | | ???###??##""""""#""" # "#"#""##???# ##?#"#"""" | | ???#"####""" """""""" """"""#######" ####"""" | | ???#""##"#" "" "" """#""#"""# ""##"""" | | ?###""""""" """#""""" #"" | | ?#""" """" """" "" #"" | | ?#"" "" """""""""" " | | ?#"" """" """""""""" | | ##"" """""" ""#""" """ " | | #""" ""##""" """"" "" """ "" | | """" ""#""" ""#" "" """ | | """""" "#"" """ """ "" | | """"" """" """ """""" """ | | """""""" """"""""""" """ ""##"" """" | | ""#"""""" z% ""#""" """ """#"" """" | | "##"" """ g"*z """" """ """"" | | #?"" """"" M"" z "" "" """" """ | | ###"" """" "" zzz | | #""""" """ "" z@l | | ##" "" "" z | | #"" "" " """""" """"" | | ##" "" """"" """"" """"" | | #"" """"""""#"" "" """"" ""#"" | | "" """###"##"" """" """#"" ""#? | | #" "" "#""##"##"" """##"""" """"""#""" ""? | | "" "" """"""""#"" """##"#"""""""##"####"" """? | | "" """ """" ""#####""""##""?##???#""""## | | """"""" """ """ #"????####"####???????""##"? | | """"" """ """ "????????##????????????##??? | | #"""" "" """ #??????????????????????????? | | [!"" """ """ #??????????????????????????? | | =%# """"" """ #??????????????????????????? | | ## """"" "" ???????????????????????????? | | ?# " ?????????????????????????????? | | ?## """ "??????????????????????????????? | | ??## """ ""??????????????????????????????? | | ???### """ """??????????????????????????????? | | ?????# " """???????????????????????????????? | | ???### " """???????????????????????????????? | | ???#""" " """""???????????????????????????????? | | ?###"" " """"" ? ??????????????????????????? | | ##""" """ """"" ??????????????????????????? | | """ "" ??????????????????????????? | +----------------------------------------------------+ Best States ------------- Heat Dissipation 61 Coolant Potential 65 Energy Generation 28 Energy Capacity 420 Matter Stores 300 Matter Capacity 300 Sight Range 20 Terrain Scan Density 10 Armor Coverage 600 Resistance: EM 15 Utility Shielding 33 Evasion (%) 66 Targeting Accuracy 8 Item Schematics ----------------- None Robot Schematics ------------------ None Fabricated ------------ Nothing Alien Tech Used ----------------- None Achievements -------------- None Challenges ------------ None Game ------ Seed LightTiamatBroadsword Manual? 0 Play Time 00:46:30 Cumulative 57.0 hours Start 2020.02.08 @ 19:48:39 End 2020.02.08 @ 20:35:22 Sessions 1 Manual Loads 0 Difficulty Rogue Special Mode None Game No. 41 Rogue 41 Adventurer 0 Explorer 0 Win Type - Total 2 Types 1/0/0/1/0/0/0 Lore% 54 Gallery% 58 Achievement% 46 Wizard Run 0 Options --------- ASCII 0 Keyboard 0 Movement Numpad Keybinds 0 Fullscreen 1 Font 18/SmallcapsGlow Map View 76x50 Tactical HUD 1 Map Filters NONE Filters NONE Steam 1 RUN: 293678e1-160f-4a4e-bbf8-807518cf7093